Cogmind - Beta 14 *** ADVENTURER MODE // 2024.08.09 @ 23:54:27 Player: AnotherZach Result: Destroyed by Y-54 Guardian with Flak Gun Performance ------------- Evolutions (0) 0 Regions Visited (3) 600 Robots Destroyed (36) 180 Value Destroyed (603) 603 Prototype IDs (0) 0 Alien Tech Used (0) 0 Bonus (0) 0 TOTAL SCORE: 1383 Bonus ------- None Cogmind --------- Core Integrity 0/250 Matter 264/300 Energy 13/100 System Corruption 0% Temperature Cool (18) Movement Rolling (135) Ox3 Location -7/Recycling Parts ------- > --- POWER (1) -------- (None) > --- PROPULSION (2) --- Wheel Compact Wheel > --- UTILITY (2) ------ Huge Storage Unit Core Shielding > --- WEAPON (2) ------- Grenade Launcher > --- INVENTORY (25) --- Subdweller Power Source Wheel Compact Wheel Medium Storage Unit High-capacity Storage Unit Medium Matter Pod (100) Seismic Detector Core Shielding Weapon Shielding Scrap Shield Dynamic Insulation System Tractor Beam Tractor Beam Grenade Launcher Grenade Launcher Peak State ------------ > --- POWER ------------ Ion Engine > --- PROPULSION ------- Light Treads Light Treads > --- UTILITY ---------- High-capacity Storage Unit Core Shielding > --- WEAPON ----------- Medium Laser Shotgun > --- INVENTORY -------- Light Ion Engine Wheel Wheel Compact Wheel Medium Storage Unit Huge Storage Unit Medium Matter Pod Seismic Detector Core Shielding Weapon Shielding Scrap Shield Tractor Beam Light Assault Rifle Light Assault Rifle Grenade Launcher Grenade Launcher Grenade Launcher Mining Laser [Rating: 10] Favorites ----------- Power Ion Engine Engine Ion Engine Propulsion Light Treads Treads Light Treads Wheel Wheel Utility Core Shielding Storage Huge Storage Unit Protection Core Shielding Weapon Medium Laser Energy Gun Medium Laser Ballistic Gun Light Assault Rifle Launcher Grenade Launcher Special Weapon Mining Laser Build | -11 -10 -10 -7 ------- Run | Yrd Mat Sub Rec Slots Evolved . | . . . . Power . | . . . . Propulsion . | . . . . Utility . | . . . . Weapon . | . . . . Parts Attached 34 | 6 13 8 7 Power 3 | 1 . 1 1 Engine 3 | 1 . 1 1 Core . | . . . . Reactor . | . . . . Propulsion 8 | 2 2 2 2 Treads 2 | . 2 . . Leg . | . . . . Wheel 6 | 2 . 2 2 Hover . | . . . . Flight . | . . . . Utility 6 | 1 3 1 1 Device . | . . . . Storage 5 | 1 2 1 1 Processor . | . . . . Hackware . | . . . . Protection 1 | . 1 . . Artifact . | . . . . Weapon 17 | 2 8 4 3 Energy Gun 1 | 1 . . . Energy Cannon . | . . . . Ballistic Gun 8 | 1 3 3 1 Ballistic Cannon . | . . . . Launcher 6 | . 4 1 1 Special Weapon 2 | . 1 . 1 Impact Weapon . | . . . . Slashing Weapon . | . . . . Piercing Weapon . | . . . . Special Melee Weapon . | . . . . Unidentified Prototypes . | . . . . Parts Lost 10 | . . 4 6 Power 2 | . . 1 1 Propulsion 3 | . . 1 2 Utility . | . . . . Weapon 5 | . . 2 3 Highest Loss Streak 6 | . . 4 6 To Critical Strikes . | . . . . Average Slot Usage (%) 99 | . 99 99 98 Engine 13 | . 14 14 13 Treads 16 | . 22 17 . Wheel 11 | . 5 10 28 Storage 14 | . 14 14 14 Protection 13 | . 13 14 14 Energy Gun 9 | . 14 8 . Ballistic Gun 13 | . 7 16 26 Launcher 4 | . 6 1 . Peak Build Rating 10 | 6 9 10 9 Average Rating 8 | 4 8 8 8 On Entrance 5 | . 6 8 8 Naked Turns . | . . . . Heaviest Build 91 | 13 91 51 86 Greatest Support 40 | 26 40 40 26 Greatest Overweight (x) 3 | . 2 1 3 Average Overweight (x) 1 | . . 1 2 Largest Inventory Capacity 25 | 8 25 20 25 Average Capacity 18 | 6 15 20 24 Most Carried 20 | 5 17 20 20 Average Carried 13 | 2 10 17 18 Final Capacity 25 | 8 25 20 25 Final Carried 17 | 5 17 15 16 Class Distribution -------------------- 100% | Mutant Dominant Class ---------------- Mutant | -10/Materials Mutant | -10/Subcaves Mutant | -7/Recycling Resources | -11 -10 -10 -7 ----------- Run | Yrd Mat Sub Rec Matter Collected 1023 | 227 381 172 243 Remotely . | . . . . Salvage Created 1216 | 83 409 220 504 Parts 54 | 5 25 12 12 Haulers Intercepted 1 | . 1 . . Recyclers Shooed 4 | . . . 4 Parts Field Recycled . | . . . . Retrieved Matter . | . . . . Parts Self-Destructed 9 | . . 9 . Prevented . | . . . . Kills | -11 -10 -10 -7 ------- Run | Yrd Mat Sub Rec Combat Hostiles Destroyed 18 | . 9 8 1 Guns 7 | . 1 6 . Cannons 1 | . . . 1 AOE 10 | . 8 2 . Classes Destroyed 10 | 2 5 2 1 Worker 2 | . 2 . . Tunneler 2 | 1 1 . . Hauler 1 | . 1 . . Recycler 8 | 1 2 . 5 Turret 2 | . . 2 . Watcher 3 | . 3 . . Swarmer 10 | . 6 4 . Grunt 3 | . 3 . . Sentry 1 | . . . 1 Subdweller 4 | . . 4 . Best Kill Streak 6 | 2 3 6 3 Combat Bots Only 4 | . 3 4 1 Max Kills in Single Turn 3 | 1 2 3 1 Gunslinging . | . . . . Exploded 2 | . 2 2 . Melee . | . . . . Uniques/NPCs Destroyed . | . . . . Combat | -11 -10 -10 -7 -------- Run | Yrd Mat Sub Rec Hostile Shots Fired 235 | . 19 108 108 Missed 69 | . 5 38 26 Damage Taken 1306 | . 121 705 480 Core 253 | . 25 97 131 Absorbed by Shields . | . . . . Redirected to Shielding 27 | . 2 16 9 Ignored by Resistances 418 | . 40 209 169 Core Remaining (%) 100 | 100 . . . Volleys Fired 108 | 3 40 32 33 Largest 2 | 2 2 2 2 Hottest 150 | 70 150 73 100 Shots Fired 200 | 6 73 62 59 Gun 167 | 6 50 55 56 Cannon . | . . . . Launcher 28 | . 20 7 1 Special 5 | . 3 . 2 Kinetic 106 | 3 12 35 56 Thermal 66 | 3 41 20 2 Explosive 28 | . 20 7 1 Electromagnetic . | . . . . Robot Hit Streak 25 | 2 11 25 20 Robot Miss Streak 1 | 1 1 1 1 Penetration Max . | . . . . Secondary Targets 1 | . . 1 . Max Gunslinging Chain 1 | . . 1 . Shots Hit Robots 156 | 3 44 57 52 Core Hits 77 | 3 29 25 20 Critical Kills . | . . . . Critical Parts Destroyed . | . . . . Critical Strikes 8 | . 4 4 . Burn 7 | . 4 3 . Destroy 1 | . . 1 . Melee Attacks . | . . . . Impact . | . . . . Slashing . | . . . . Piercing . | . . . . Sneak Attacks . | . . . . Combat Hostiles . | . . . . Follow-up Attacks . | . . . . Damage Inflicted 2558 | 32 1162 913 451 Guns 1484 | 32 396 669 387 Cannons . | . . . . Explosions 1026 | . 766 244 16 Melee . | . . . . Ramming . | . . . . Kinetic 959 | 19 121 432 387 Thermal 573 | 13 275 237 48 Explosive 1026 | . 766 244 16 Electromagnetic . | . . . . Impact . | . . . . Slashing . | . . . . Piercing . | . . . . Highest Corruption . | . . . . Average Corruption . | . . . . Corruption Purged . | . . . . Corruption Blocked . | . . . . Overload Shots . | . . . . Overflow Damage 16 | . 12 4 . Projectiles . | . . . . Explosions 16 | . 12 4 . Melee . | . . . . Knockbacks . | . . . . Impact . | . . . . Kinetic . | . . . . Secondary . | . . . . Self-Inflicted Damage 50 | . 19 . 31 Shots 4 | . 3 . 1 Rammed . | . . . . Targets Rammed . | . . . . Kicked . | . . . . Crushed . | . . . . Highest Temperature 90 | 40 90 21 36 Average Temperature 22 | 21 24 9 13 Received Heat Transfer 465 | . 45 234 186 Siege Activations . | . . . . Robots Corrupted . | . . . . Combat Hostiles . | . . . . Parts Fried . | . . . . Impact Corruptions . | . . . . Robots Melted . | . . . . Combat Hostiles . | . . . . Parts Melted 4 | . 2 2 . Heat Transferred 2172 | 37 1110 925 100 Parts Sabotaged . | . . . . Parts Stolen . | . . . . Parts Stripped . | . . . . Power Chain Reactions . | . . . . Alert | -11 -10 -10 -7 ------- Run | Yrd Mat Sub Rec Peak Influence 264 | 10 264 . 101 Initial 49 | . 5 . 49 Average 68 | 4 79 . 48 Maximum Alert Level 1 | . 1 . . Low Security (%) 91 | 100 88 . 100 Level 1 8 | . 11 . . Level 2 . | . . . . Level 3 . | . . . . Level 4 . | . . . . Level 5 . | . . . . High Security . | . . . . Max Security . | . . . . Squads Dispatched . | . . . . Investigation . | . . . . Extermination . | . . . . Reinforcement . | . . . . Assault . | . . . . Garrison . | . . . . Intercept . | . . . . Searches Triggered . | . . . . Construction Impeded . | . . . . Haulers Reinforced . | . . . . Active Scanning Responses . | . . . . Cargo Convoy Interrupts . | . . . . Stealth | -11 -10 -10 -7 --------- Run | Yrd Mat Sub Rec Distress Signals 1 | . 1 . . Communications Jammed . | . . . . Distress Signals . | . . . . Times Spotted 26 | . 14 10 2 Peak Tracking Total 6 | . 3 6 2 Tactical Retreats . | . . . . Traps | -11 -10 -10 -7 ------- Run | Yrd Mat Sub Rec Traps Triggered . | . . . . Indirectly . | . . . . Trap Hack Attempts . | . . . . Triggered . | . . . . Disarmed . | . . . . Reprogrammed . | . . . . Reused . | . . . . Traps Extracted . | . . . . Installed . | . . . . Triggered . | . . . . Machines | -11 -10 -10 -7 ---------- Run | Yrd Mat Sub Rec Machines Disabled 4 | . . 4 . Max in Single Turn 2 | . . 2 . Machines Repaired . | . . . . Machines Dismantled . | . . . . Machines Sabotaged . | . . . . Overloaded Fab Kills . | . . . . Hacking | -11 -10 -10 -7 --------- Run | Yrd Mat Sub Rec Machines Accessed 15 | . 9 . 6 Terminals 9 | . 7 . 2 Fabricators . | . . . . Repair Stations . | . . . . Recycling Units 6 | . 2 . 4 Scanalyzers . | . . . . Garrison Access . | . . . . Total Hacks 41 | . 19 . 22 Successful 31 | . 16 . 15 Failed 10 | . 3 . 7 Catastrophic 4 | . 1 . 3 Database Lockouts . | . . . . Manual 33 | . 17 . 16 Terminals 24 | . 17 . 7 Fabricators . | . . . . Repair Stations . | . . . . Recycling Units 17 | . 2 . 15 Scanalyzers . | . . . . Garrison Access . | . . . . Terminal Hacks 5 | . 4 . 1 Robot Schematic 3 | . 2 . 1 Robot Analysis 2 | . 2 . . Fabricator Hacks . | . . . . Repair Station Hacks . | . . . . Recycling Unit Hacks 7 | . 2 . 5 Report Inventory 3 | . . . 3 Retrieve Matter 1 | . 1 . . Retrieve Components 3 | . 1 . 2 Scanalyzer . | . . . . Garrison Access Hacks . | . . . . Unauthorized Hacks 19 | . 10 . 9 Terminals 11 | . 10 . 1 Track 2 | . 2 . . Botnet 4 | . 3 . 1 Skim 5 | . 5 . . Fabricators . | . . . . Repair Stations . | . . . . Recycling Units 8 | . . . 8 Reject 4 | . . . 4 Recyclers 1 | . . . 1 Mask 3 | . . . 3 Scanalyzers . | . . . . Garrison Access . | . . . . Data Cores Recovered . | . . . . Used . | . . . . Hacking Detections 9 | . 6 . 3 Full Trace Events 4 | . 1 . 3 Feedback Events . | . . . . Feedback Blocked . | . . . . Robot Schematics Acquired 3 | . 2 . 1 Robots Built . | . . . . Authchips . | . . . . Time . | . . . . Total Robot Build Rating . | . . . . Part Schematics Acquired . | . . . . Parts Built . | . . . . Authchips . | . . . . Time . | . . . . Total Part Build Rating . | . . . . Parts Repaired . | . . . . Time . | . . . . Parts Recycled . | . . . . Recycled Matter . | . . . . Retrieved Matter . | . . . . Retrieved Components 11 | . 3 . 8 Parts Scanalyzed . | . . . . Part Schematics Acquired . | . . . . Parts Damaged . | . . . . Bothacking | -11 -10 -10 -7 ------------ Run | Yrd Mat Sub Rec Used RIF Installer . | . . . . Robots Hacked . | . . . . Non-combat . | . . . . Combat . | . . . . Robot Hacks Applied . | . . . . Relay Couplers Released . | . . . . Fabnet Peak Effective % . | . . . . Robots Rewired . | . . . . Allies Hacked . | . . . . Hacks Repelled . | . . . . Allies | -11 -10 -10 -7 -------- Run | Yrd Mat Sub Rec Total Allies . | . . . . Largest Group . | . . . . Highest-Rated Group . | . . . . Highest-Rated Ally . | . . . . Total Orders . | . . . . Ally Attacks . | . . . . Total Damage . | . . . . Kills . | . . . . Allies Corrupted . | . . . . Allies Melted . | . . . . Intel | -11 -10 -10 -7 ------- Run | Yrd Mat Sub Rec Robot Analysis Total 2 | . 2 . . Derelict Logs Recovered . | . . . . Drone Launches . | . . . . Drone Recoveries . | . . . . Exploration | -11 -10 -10 -7 ------------- Run | Yrd Mat Sub Rec Turns Passed 2622 | 80 1609 336 597 Spaces Moved 1314 | 65 724 152 373 Core 8 | 8 . . . Treads 598 | . 543 55 . Legs . | . . . . Wheels 708 | 57 181 97 373 Hover . | . . . . Flight . | . . . . Fastest Speed 50 | 50 90 105 105 Average Speed 159 | 85 181 153 131 Slowest Speed 320 | 90 320 240 135 Overloaded Moves . | . . . . Propulsion Burnouts . | . . . . Robots Hopped . | . . . . Cave-ins Triggered . | . . . . Exploration Rate (%) 44 | 4 95 15 63 Regions Visited 3 Branch Regions 2 Pre-discovered Areas 1 | . 1 . . Known Exits Taken 2 | . 1 1 . Unknown Exits Taken 1 | 1 . . . Scrap Searched . | . . . . Spaces Dug 32 | . 32 . . Terrain Destroyed 109 | . 98 9 2 Melee . | . . . . Projectile . | . . . . AOE 109 | . 98 9 2 Terrain Rammed . | . . . . Walls Destroyed . | . . . . Machines Disabled . | . . . . Actions | -11 -10 -10 -7 --------- Run | Yrd Mat Sub Rec Total 1639 | 84 936 194 425 Wait 144 | . 139 . 5 Move 1311 | 64 723 151 373 Hop . | . . . . Pick Up 36 | 11 17 2 6 Fast Attach . | . . . . Attach 17 | 6 2 5 4 Detach . | . . . . Swap 17 | . 11 3 3 Drop 6 | . 4 1 1 Fire 108 | 3 40 32 33 Melee . | . . . . Ram . | . . . . Kick . | . . . . Crush . | . . . . Escape Stasis . | . . . . Rewire . | . . . . Trap . | . . . . Miscellaneous . | . . . . Route ------- -11/Scrapyard -10/Materials (discovered 6 exits: *Mat x3 / *Min x2 / *Sub) -10/Subcaves -7/Recycling (discovered 1 exit: [*Fac]) History --------- Turn | Location | Event 18 | -11/Scrapyard | Discovered new exit (range 15) 81 | -11/Scrapyard | Entered Materials 191 | -10/Materials | Discovered new exit (range 8) 317 | -10/Materials | Build established: Mutant 368 | -10/Materials | Discovered new exit (range 13) 368 | -10/Materials | Discovered new exit (range 16) 631 | -10/Materials | Discovered new exit (range 16) 1057 | -10/Materials | Learned Storage stockpile data 1104 | -10/Materials | Learned Storage stockpile data 1141 | -10/Materials | Identified exit to Materials 1141 | -10/Materials | Identified exit to Subcaves 1191 | -10/Materials | Learned Storage trap positions 1216 | -10/Materials | Identified exit to Mines 1243 | -10/Materials | Loaded intel: 31 non-interactive machine locations 1690 | -10/Materials | Entered Subcaves 1691 | -10/Subcaves | Identified exit to Recycling 1927 | -10/Subcaves | Lost 4 parts (1p1n2w) 2026 | -10/Subcaves | Entered Recycling 2559 | -7/Recycling | Discovered new exit (range 11) 2580 | -7/Recycling | Core integrity fell below 50% 2617 | -7/Recycling | Core integrity fell below 20% 2623 | -7/Recycling | Destroyed by Y-54 Guardian with Flak Gun Last Messages --------------- Matter reserves: 0 Inventory: Arc Projector (30%) 02559_ EXIT=FOUND 02567_ Connecting with Recycling Unit... >>Trojan(Reject) Trojan loaded successfully. Testing... Ejection routine running. >>Recycling(Report) Matter reserves: 0 Inventory: Empty 02578_ Y-54 Guardian springs to life. 02595_ Lgt. Ion Engine destroyed. 02599_ Lgt. Assault Rifle destroyed. 02605_ Com. Wheel destroyed. 02608_ Lgt. Assault Rifle destroyed. 02614_ Y-54 Guardian destroyed. 02616_ Mining Laser destroyed. 02620_ Com. Wheel destroyed. Map ----- +----------------------------------------------------+ | | | | | | | | | ????????????????????????????????????? | | ????????????????????????????????????? | | ????????????????????????????????????? | | ????????????????????????????????????? | | ????????????????????????????????????? | | ????????????????????????????????????? | | ????????????????????????????????????? | | ????????????????????????????????????? | | ????????????????????????????????????? | | ????????????????????????????????????? | | ????????????????????????????????????? | | ????????????????????????????????????? | | ??????###########???????????????????? | | ??????# #???????????????????? | | ??????# #???????????????????? | | ??????# #???????????????????? | | ??????# ##??????????????????? | | ??????# r#??????????????????? | | ??????# #???????????????????? | | ??????# #???????????????????? | | ??????# #???????????????????? | | ?????##### Y@########+#?????????????? | | ?????# u ?????????? | | ?????# < ????r????? | | ?????# " ?????????? | | ?????### "" # ## ######??????????? | | ????#### "" ###??#???????????????? | | ????#""" """ #????????????????????? | | ????#"Y "" #??###???????????????? | | ????#""" """ #?? #???????????????? | | ????#### """ #? #???????????????? | | ????# """ #? #??##???????????? | | ????# " r# #??# ########???? | | ????# r# #??# #???? | | ????# + #??# #???? | | ????# ######## # #??# #???? | | ??###+######## # #??# #???? | | ??# # + #??# #???? | | ??# # # #??# #???? | | ??# # # #??# ##??? | | ??# # + #??# #??? | | ??# # # #?## ##??? | | ??# # ###+## ######+######?? | | ??# # #?? | | ??# + r #?? | | ??# # #?? | +----------------------------------------------------+ Best States ------------- Heat Dissipation 25 Energy Generation 10 Energy Capacity 250 Matter Stores 300 Matter Capacity 300 Sight Range 16 Terrain Scan Density 10 Resistance: KI 20 Resistance: TH 20 Resistance: EX 20 Resistance: EM 20 Resistance: I 20 Resistance: S 20 Resistance: P 20 Core Shielding 20 Evasion (%) 42 Recoil Reduction 2 Offensive Hacking 10 Item Schematics ----------------- None Robot Schematics ------------------ O-16 Technician | -10/Materials | Hacked M-13 Machinist | -10/Materials | Hacked M-28 Smith | -7/Recycling | Hacked Fabricated ------------ Nothing Alien Tech Used ----------------- None Achievements -------------- None Challenges ------------ None Game ------ Seed ArmoredLargeSaw Manual? 0 Play Time 00:17:14 Cumulative 577.4 hours Start 2024.08.09 @ 23:38:35 End 2024.08.09 @ 23:54:27 Sessions 1 Manual Loads 0 Difficulty Adventurer Special Mode None Game No. 112 Rogue 0 Adventurer 112 Explorer 0 Win Type - Total 7 Types 4/0/1/2/0/0/0/0/0 Lore% 65 Gallery% 79 Achievement% 70 Wizard Run 0 Options --------- Layout 2 ASCII 0 Keyboard 0 Movement Mouse Keybinds 0 Fullscreen 1 Font 24/Smallcaps Map View 50x49 Zoom Use 0% Tactical HUD 1 Map Filters NONE Filters NONE Steam 1 RUN: 42203009-a7a0-4dbd-827f-af67b6d9d228